[Event "8th Palmanova Open 2019"]
[Site "Palmanova"]
[Date "2019.12.07"]
[Round "2.3"]
[White "Trussevich, Sergey"]
[Black "Belli, Giorgio"]
[Result "1/2-1/2"]
[ECO "A13"]
[WhiteElo "2280"]
[BlackElo "2136"]
[Annotator "NA"]
[PlyCount "135"]
[EventDate "2019.12.06"]
[EventType "swiss"]
[EventCountry "ITA"]
[SourceTitle "playchess.com"]
[Source "ChessBase"]
[SourceQuality "1"]
[TimeControl "5400+30"]

1. Nf3 {[%emt 0:00:00]} Nf6 {[%emt 0:15:26]} 2. e3 {[%emt 0:00:00]} b6 {[%emt 0:00:22]} 3. b3 {[%emt 0:00:00]} Bb7 {[%emt 0:00:11]} 4. Bb2 {[%emt 0:00:02]} e6 {[%emt 0:00:18]} 5. Be2 {[%emt 0:00:38]} Be7 {[%emt 0:00:06]} 6. c4 {[%emt 0:00:29]} c5 {[%emt 0:02:39] A13: English Opening: 1...e6} 7. a3 {[%emt 0:00:23]} (7. d4 cxd4 8. Nxd4 O-O 9. O-O d6 10. Bf3 Qc8 11. Nc3 Nbd7 12. Qe2 a6 13. Rad1 Rd8 14. Bxb7 Qxb7 15. e4 Rac8 16. f4 Nc5 17. Rfe1 {½-½ (52) Grischuk,A (2772)-Yu,Y (2751) Huaian 2017}) 7... Nc6 {[%emt 0:03:13]} 8. d3 {[%emt 0:00:17]} d5 {[%emt 0:00:31]} 9. O-O {[%emt 0:01:09]} O-O {[%emt 1:11:44]} 10. cxd5 {[%emt 0:00:07]} Nxd5 {[%emt 0:00:00]} 11. Qc2 {[%emt 0:01:21]} Rc8 {[%emt 0:00:00]} 12. Nbd2 {[%emt 0:00:10]} Bf6 {[%emt 0:00:00]} 13. Rab1 $146 {[%emt 0:02:32]} ({Predecessor:} 13. Ne4 Bxb2 14. Qxb2 Qe7 15. Rfd1 f5 {½-½ (71) Perdomo,C (2301)-Drygalov,A (2481) St Petersburg 2018}) 13... Qe7 {[%emt 0:00:00]} 14. Bxf6 {[%emt 0:01:02]} Qxf6 {[%emt 0:00:00]} 15. Rfc1 {[%emt 0:01:58]} Rfd8 {[%emt 0:00:00]} 16. Nc4 {[%emt 0:03:13]} h6 {[%emt 0:00:00]} 17. h3 {[%emt 0:01:03]} Rc7 {[%emt 0:00:00]} 18. Bf1 {[%emt 0:01:06]} e5 {[%emt 0:00:00]} 19. Rb2 {[%emt 0:02:37]} Bc8 {[%emt 0:00:00]} 20. Be2 {[%emt 0:01:22]} Re7 {[%emt 0:00:00]} 21. Ncd2 {[%emt 0:00:51]} Rc7 {[%emt 0:00:00]} 22. Qb1 {[%emt 0:01:04]} g5 {[%emt 0:00:00]} 23. b4 {[%emt 0:01:16]} cxb4 {[%emt 0:00:00]} 24. axb4 {[%emt 0:01:33]} Re7 {[%emt 0:00:00]} (24... a6 $142) 25. b5 {[%emt 0:01:43]} Na5 {[%emt 0:00:00]} 26. Rbc2 {[%emt 0:06:12]} Bf5 {[%emt 0:00:00]} 27. Ne4 {[%emt 0:05:33]} Qg7 {[%emt 0:00:00]} 28. Ng3 {[%emt 0:05:28]} Bg6 {[%emt 0:00:00]} 29. Bf1 {[%emt 0:06:52]} Nb7 {[%emt 0:00:00]} 30. Rc8 $16 {[%emt 0:14:55]} Rxc8 {[%emt 0:00:00]} 31. Rxc8+ {[%emt 0:00:01]} Kh7 {[%emt 0:00:00]} 32. Qa2 {[%emt 0:04:15]} Rd7 {[%emt 0:00:00]} 33. Qxa7 {[%emt 0:14:56]} f6 {[%emt 0:02:11]} 34. Qb8 {[%emt 0:11:56]} Nd6 {[%emt 0:01:02]} 35. Rd8 {[%emt 0:04:19]} Rxd8 {[%emt 0:03:27]} 36. Qxd8 {[%emt 0:00:07]} Qc7 {[%emt 0:00:05]} 37. Qa8 {[%emt 0:01:28]} Nc3 {[%emt 0:01:25]} 38. Qf8 {[%emt 0:00:26]} Ne8 {[%emt 0:01:07]} 39. d4 {[%emt 0:02:16]} e4 {[%emt 0:00:05]} 40. Nd2 {[%emt 0:00:14]} Qd6 {[%emt 0:00:32]} 41. Qxd6 {[%emt 0:00:09]} Nxd6 {[%emt 0:00:02]} 42. Nc4 {[%emt 0:00:48]} Nc8 {[%emt 0:02:03]} 43. Na3 {[%emt 0:02:43]} Be8 {[%emt 0:02:15]} 44. f3 {[%emt 0:01:44]} exf3 {[%emt 0:00:39]} 45. gxf3 {[%emt 0:00:59]} Nd6 {[%emt 0:00:05]} 46. Bd3+ {[%emt 0:00:21]} Kg7 {[%emt 0:01:10]} 47. Ne4 {[%emt 0:01:06]} Ndxb5 {[%emt 0:02:17]} 48. Nc4 {[%emt 0:00:22]} Nxe4 {[%emt 0:00:19]} 49. fxe4 {[%emt 0:00:46]} Nc3 {[%emt 0:00:36]} 50. Nxb6 {[%emt 0:00:15]} Bg6 {[%emt 0:00:06]} 51. Bc4 {[%emt 0:00:47]} Nxe4 {[%emt 0:00:39]} 52. Kg2 {[%emt 0:00:28]} Nd6 {[%emt 0:00:24]} 53. Be2 {[%emt 0:00:20]} Kf7 {[%emt 0:00:45]} 54. Na4 {[%emt 0:00:10]} Ke7 {[%emt 0:00:22]} 55. Nc5 {[%emt 0:00:09]} Ne4 {[%emt 0:00:37]} 56. Nb3 {[%emt 0:01:23]} Bf7 {[%emt 0:00:11]} 57. Nc1 {[%emt 0:00:11]} Bd5 {[%emt 0:00:40]} 58. Bf3 {[%emt 0:00:11]} f5 {[%emt 0:00:36]} 59. Ne2 {[%emt 0:00:50]} Kd6 {[%emt 0:00:37]} 60. Bxe4 {[%emt 0:00:47]} Bxe4+ {[%emt 0:00:21]} 61. Kg3 {[%emt 0:00:03]} Bd5 {[%emt 0:00:38]} 62. h4 {[%emt 0:00:40]} Bc4 {[%emt 0:00:22]} 63. Nc3 {[%emt 0:00:47]} Bd3 {[%emt 0:00:27]} 64. Nd1 {[%emt 0:00:29]} Kd5 {[%emt 0:00:22]} 65. hxg5 {[%emt 0:00:12]} hxg5 {[%emt 0:00:04]} 66. Kf2 {[%emt 0:00:51]} f4 {[%emt 0:01:04]} 67. exf4 {[%emt 0:00:32]} gxf4 {[%emt 0:00:12]} 68. Kf3 {[%emt 0:01:03] Ke5 Ke4+} 1/2-1/2

[Event "8th Palmanova Open 2019"]
[Site "Palmanova"]
[Date "2019.12.07"]
[Round "2.4"]
[White "Margl, Roland"]
[Black "Garau, Francesca"]
[Result "1-0"]
[ECO "E06"]
[WhiteElo "2249"]
[BlackElo "1830"]
[Annotator "NA"]
[PlyCount "69"]
[EventDate "2019.12.06"]
[EventType "swiss"]
[EventCountry "ITA"]
[SourceTitle "playchess.com"]
[Source "ChessBase"]
[SourceQuality "1"]
[TimeControl "5400+30"]

1. Nf3 {[%emt 0:00:00]} d5 {[%emt 0:00:00]} 2. d4 {[%emt 0:00:00]} e6 {[%emt 0:00:00]} 3. c4 {[%emt 0:00:00]} c5 {[%emt 0:00:28]} 4. cxd5 {[%emt 0:00:00]} exd5 {[%emt 0:00:15]} 5. g3 {[%emt 0:00:25]} Nc6 {[%emt 0:00:26]} 6. Bg2 {[%emt 0:00:04]} Nf6 {[%emt 0:00:11]} 7. O-O {[%emt 0:00:07]} Be7 {[%emt 0:00:12]} 8. Nc3 {[%emt 0:00:26]} O-O {[%emt 0:00:14]} 9. dxc5 {[%emt 0:00:07]} Bxc5 {[%emt 0:01:29]} 10. a3 {[%emt 0:00:06]} a5 {[%emt 0:01:09]} 11. Bg5 {[%emt 0:00:34]} d4 {[%emt 0:03:00] E06: Closed Catalan: Early deviations} 12. Ne4 {[%emt 0:03:58]} Be7 {[%emt 0:01:35]} 13. Nxf6+ {[%emt 0:00:06]} Bxf6 {[%emt 0:00:17]} 14. Bxf6 {[%emt 0:00:05]} Qxf6 {[%emt 0:00:20] [#]} 15. Ne1 $146 {[%emt 0:00:36]} ({Predecessor:} 15. Rc1 Be6 16. Ne1 Rad8 17. Nd3 Rfe8 18. Re1 Bg4 19. Qd2 {1-0 (47) Laxman,R (2502)-Salem,A (2469) Abu Dhabi 2009}) 15... Bf5 {[%emt 0:10:02]} 16. Rc1 {[%emt 0:01:53]} Rab8 {[%emt 0:06:02]} 17. Nd3 {[%emt 0:05:41]} Rfc8 {[%emt 0:11:13]} 18. Qb3 {[%emt 0:02:46]} b5 {[%emt 0:09:18]} 19. Rc5 {[%emt 0:12:29]} Be6 {[%emt 0:16:17]} 20. Bd5 {[%emt 0:02:16]} a4 {[%emt 0:09:09]} 21. Qa2 {[%emt 0:02:26]} Na5 {[%emt 0:07:06]} 22. Rfc1 {[%emt 0:13:33]} Nc4 {[%emt 0:04:50]} 23. Bg2 {[%emt 0:08:01]} Qe7 {[%emt 0:02:55]} 24. Rxc8+ {[%emt 0:00:42]} Rxc8 $15 {[%emt 0:00:09]} 25. Nf4 {[%emt 0:02:47]} h6 {[%emt 0:01:11]} 26. Qb1 {[%emt 0:11:27]} Qd7 {[%emt 0:02:50]} 27. Rd1 {[%emt 0:04:08]} Bf5 {[%emt 0:02:58]} 28. Be4 {[%emt 0:12:33]} Bxe4 {[%emt 0:03:31]} 29. Qxe4 {[%emt 0:00:02]} Rd8 {[%emt 0:02:12]} 30. e3 {[%emt 0:02:02]} Qa7 {[%emt 0:02:32]} 31. Nd5 {[%emt 0:01:06]} Kf8 {[%emt 0:03:03]} 32. Rxd4 {[%emt 0:00:35]} Nxb2 {[%emt 0:00:28]} 33. Qh7 {[%emt 0:00:19]} Rxd5 {[%emt 0:00:35]} 34. Rxd5 {[%emt 0:00:13]} Qb7 {[%emt 0:00:21]} 35. Qh8+ {[%emt 0:00:19]} 1-0

[Event "8th Palmanova Open 2019"]
[Site "Palmanova"]
[Date "2019.12.07"]
[Round "2.5"]
[White "Savanovic, Maksim"]
[Black "Kobal, Sasa"]
[Result "0-1"]
[ECO "D00"]
[WhiteElo "2062"]
[BlackElo "2100"]
[Annotator "NA"]
[PlyCount "94"]
[EventDate "2019.12.06"]
[EventType "swiss"]
[EventCountry "ITA"]
[SourceTitle "playchess.com"]
[Source "ChessBase"]
[SourceQuality "1"]
[TimeControl "5400+30"]

1. d4 {[%emt 0:00:00]} d5 {[%emt 0:02:36]} 2. Bf4 {[%emt 0:00:00]} c5 {[%emt 0:00:48]} 3. e3 {[%emt 0:00:00]} Nc6 {[%emt 0:00:07]} 4. c3 {[%emt 0:00:00]} Qb6 {[%emt 0:00:51]} 5. Qb3 {[%emt 0:00:00]} c4 {[%emt 0:00:03]} 6. Qc2 {[%emt 0:00:42]} Nf6 {[%emt 0:03:45]} 7. Nd2 {[%emt 0:00:12]} Bg4 {[%emt 0:02:12]} 8. Ngf3 {[%emt 0:04:42]} e6 {[%emt 0:02:33]} 9. Be2 {[%emt 0:00:26]} Bf5 {[%emt 0:03:44]} 10. Qc1 {[%emt 0:00:23]} Be7 {[%emt 0:01:44]} 11. h3 {[%emt 0:00:51]} h6 {[%emt 0:03:30]} 12. O-O {[%emt 0:00:29]} O-O {[%emt 0:01:23]} 13. b3 {[%emt 0:20:26]} cxb3 {[%emt 0:03:39]} 14. axb3 {[%emt 0:00:44]} Na5 $16 {[%emt 0:09:44]} (14... a5 $11) 15. Qb2 {[%emt 0:15:56]} Rfc8 {[%emt 0:05:05]} 16. Qa2 {[%emt 0:15:29]} Nc6 {[%emt 0:05:48]} 17. Rfc1 {[%emt 0:02:09]} a5 {[%emt 0:06:01]} 18. Ne5 {[%emt 0:02:48]} Nxe5 {[%emt 0:03:02]} 19. Bxe5 {[%emt 0:01:04]} Nd7 {[%emt 0:00:23]} 20. Bg3 {[%emt 0:04:03]} Bd6 {[%emt 0:01:29]} 21. Bxd6 {[%emt 0:04:56]} Qxd6 {[%emt 0:00:05]} 22. c4 {[%emt 0:05:31]} Qb4 {[%emt 0:02:29]} 23. Nf3 {[%emt 0:07:31]} dxc4 {[%emt 0:08:43]} 24. bxc4 {[%emt 0:03:45]} a4 {[%emt 0:06:46]} 25. Nd2 {[%emt 0:03:26]} Nf6 {[%emt 0:02:11]} 26. Bf3 {[%emt 0:00:49]} Rab8 {[%emt 0:00:28]} 27. e4 {[%emt 0:01:20]} Bg6 {[%emt 0:01:08]} 28. Rab1 {[%emt 0:02:35]} Qd6 {[%emt 0:04:20]} 29. Qxa4 {[%emt 0:03:35]} Qxd4 {[%emt 0:00:27]} 30. Rd1 {[%emt 0:00:33]} e5 {[%emt 0:06:01]} 31. Qb3 {[%emt 0:00:25]} Nh5 {[%emt 0:01:40]} 32. Bxh5 {[%emt 0:00:31]} Bxh5 {[%emt 0:00:05]} 33. g4 {[%emt 0:00:15]} Bg6 {[%emt 0:00:08]} 34. Qf3 {[%emt 0:00:45]} Rc6 {[%emt 0:01:18]} 35. Rb5 {[%emt 0:00:34]} Rd8 {[%emt 0:01:16]} 36. Rd5 {[%emt 0:00:31]} Rxd5 {[%emt 0:00:17]} 37. cxd5 {[%emt 0:00:27]} Rc3 {[%emt 0:00:14]} 38. Qe2 {[%emt 0:00:34]} Rd3 {[%emt 0:01:36]} 39. Kg2 {[%emt 0:00:30]} Bxe4+ {[%emt 0:00:25]} 40. f3 {[%emt 0:00:12]} Bxd5 {[%emt 0:01:50]} 41. Kh2 {[%emt 0:00:44]} Qf4+ {[%emt 0:00:55]} 42. Kg2 {[%emt 0:00:11]} Re3 {[%emt 0:00:25]} 43. Qf2 {[%emt 0:00:16]} e4 {[%emt 0:00:39]} 44. Nxe4 {[%emt 0:00:49]} Bxe4 {[%emt 0:00:09]} 45. Rf1 {[%emt 0:00:41]} Bxf3+ {[%emt 0:00:18]} 46. Kg1 {[%emt 0:00:05]} Re2 {[%emt 0:00:37]} 47. Qxe2 {[%emt 0:00:45]} Qg3+ {[%emt 0:00:04]} 0-1

[Event "8th Palmanova Open 2019"]
[Site "Palmanova"]
[Date "2019.12.07"]
[Round "2.6"]
[White "Bozza, Gabriele"]
[Black "Zamengo, Fulvio"]
[Result "0-1"]
[ECO "D93"]
[WhiteElo "1948"]
[BlackElo "2357"]
[Annotator "NA"]
[PlyCount "95"]
[EventDate "2019.12.06"]
[EventType "swiss"]
[EventCountry "ITA"]
[SourceTitle "playchess.com"]
[Source "ChessBase"]
[SourceQuality "1"]
[TimeControl "5400+30"]

1. d4 {[%emt 0:00:00]} Nf6 {[%emt 0:00:00]} 2. c4 {[%emt 0:00:00]} g6 {[%emt 0:00:00]} 3. Nc3 {[%emt 0:00:00]} d5 {[%emt 0:00:00]} 4. Nf3 {[%emt 0:00:11]} Bg7 {[%emt 0:00:00]} 5. Qb3 {[%emt 0:00:23]} dxc4 {[%emt 0:00:06]} 6. Qxc4 {[%emt 0:00:07]} a6 {[%emt 0:00:40]} 7. Bf4 {[%emt 0:03:57]} c6 {[%emt 0:01:01]} 8. e3 {[%emt 0:00:33]} b5 {[%emt 0:02:40]} 9. Qb3 {[%emt 0:06:30]} O-O {[%emt 0:01:03]} 10. Be2 {[%emt 0:00:07]} Nbd7 {[%emt 0:13:30]} 11. O-O {[%emt 0:13:54]} Nh5 {[%emt 0:19:51]} 12. Bg5 {[%emt 0:08:06]} h6 {[%emt 0:04:22]} 13. Bh4 {[%emt 0:00:05]} g5 {[%emt 0:00:07]} 14. Bg3 {[%emt 0:00:12]} Nxg3 {[%emt 0:00:10]} 15. hxg3 {[%emt 0:00:06]} e5 {[%emt 0:17:47]} 16. dxe5 {[%emt 0:02:10]} Nxe5 {[%emt 0:06:13]} 17. Nxe5 {[%emt 0:00:19]} Bxe5 {[%emt 0:00:06]} 18. Rfd1 {[%emt 0:03:35]} Qe7 {[%emt 0:01:26]} 19. Bf3 {[%emt 0:02:00]} Be6 {[%emt 0:02:46]} 20. Qc2 {[%emt 0:03:17]} Rac8 {[%emt 0:00:18]} 21. g4 {[%emt 0:07:40]} h5 {[%emt 0:08:25]} 22. gxh5 {[%emt 0:08:11]} g4 {[%emt 0:00:08]} 23. Be4 {[%emt 0:05:56] [#]} (23. Be2 $17) 23... Qh4 {[%emt 0:00:29]} (23... f5 $1 $17 {[%cal Rf5e4]} 24. Bd3 Qh4) 24. g3 $11 {[%emt 0:04:44]} Qxh5 {[%emt 0:00:06]} 25. Ne2 {[%emt 0:02:46]} f5 {[%emt 0:05:57]} 26. Bg2 {[%emt 0:01:21]} Rf6 {[%emt 0:00:25]} 27. Nf4 {[%emt 0:01:40]} Bxf4 {[%emt 0:00:07]} 28. exf4 {[%emt 0:00:05]} Rh6 {[%emt 0:00:06]} 29. b3 {[%emt 0:00:08]} Re8 {[%emt 0:02:35]} 30. Rd3 {[%emt 0:06:09]} Bf7 {[%emt 0:11:57]} 31. Qd2 {[%emt 0:01:44]} Bd5 {[%emt 0:01:06]} 32. Rxd5 {[%emt 0:01:04]} cxd5 {[%emt 0:00:04]} 33. Bxd5+ {[%emt 0:02:15]} Kh7 {[%emt 0:00:04]} 34. Qc2 {[%emt 0:00:50]} Qg6 {[%emt 0:00:34]} 35. Rc1 {[%emt 0:05:42]} Qf6 {[%emt 0:01:43]} 36. a4 {[%emt 0:03:48]} bxa4 {[%emt 0:00:25]} 37. bxa4 {[%emt 0:00:07]} Rg6 {[%emt 0:00:59]} 38. Kg2 {[%emt 0:00:50]} Rg7 {[%emt 0:00:10]} 39. Rh1+ {[%emt 0:05:01]} Kg6 {[%emt 0:00:01]} 40. Qa2 {[%emt 0:00:13]} Rh7 {[%emt 0:00:49]} 41. Rc1 {[%emt 0:00:31]} Rd8 {[%emt 0:00:29]} 42. Rc6 {[%emt 0:01:10]} Rd6 {[%emt 0:00:04]} 43. Rc8 {[%emt 0:00:51]} Rhd7 {[%emt 0:00:31]} 44. Bc6 {[%emt 0:01:45]} Rxc6 {[%emt 0:02:40]} 45. Qg8+ {[%emt 0:00:06]} Kh6 {[%emt 0:00:00]} 46. Rf8 {[%emt 0:00:10]} Qg7 {[%emt 0:00:00]} 47. Rc8 {[%emt 0:03:11]} Qf6 {[%emt 0:01:30]} 48. Qg5+ {[%emt 0:00:30] Rd8} 0-1

[Event "8th Palmanova Open 2019"]
[Site "Palmanova"]
[Date "2019.12.07"]
[Round "2.7"]
[White "Hercegovac, Neven"]
[Black "Dappiano, Andrea"]
[Result "0-1"]
[ECO "C11"]
[WhiteElo "2003"]
[BlackElo "2258"]
[Annotator "ChessBase"]
[PlyCount "62"]
[EventDate "2019.12.06"]
[EventType "swiss"]
[EventCountry "ITA"]
[SourceTitle "playchess.com"]
[Source "ChessBase"]
[SourceQuality "1"]
[TimeControl "5400+30"]

1. e4 {[%emt 0:00:00]} e6 {[%emt 0:00:00]} 2. d4 {[%emt 0:00:00]} d5 {[%emt 0:00:00]} 3. Nc3 {[%emt 0:00:00]} Nf6 {[%emt 0:00:00]} 4. e5 {[%emt 0:00:06]} Nfd7 {[%emt 0:00:00]} 5. Nf3 {[%emt 0:00:09]} c5 {[%emt 0:00:00]} 6. dxc5 {[%emt 0:00:34]} Nc6 {[%emt 0:00:33]} 7. Bf4 {[%emt 0:00:16]} Bxc5 {[%emt 0:00:59]} 8. Bd3 {[%emt 0:00:07]} f6 {[%emt 0:00:29]} 9. exf6 {[%emt 0:00:20]} Nxf6 {[%emt 0:00:05]} 10. O-O {[%emt 0:00:19]} O-O {[%emt 0:00:12]} 11. Ne5 {[%emt 0:00:14]} a6 {[%emt 0:08:06]} 12. Qe2 {[%emt 0:16:26]} Nxe5 {[%emt 0:13:00]} 13. Bxe5 {[%emt 0:00:23]} b5 {[%emt 0:02:09]} 14. Rae1 {[%emt 0:02:59]} Ra7 {[%emt 0:03:18]} 15. Nb1 {[%emt 0:19:29]} Raf7 {[%emt 0:05:03]} 16. Bg3 {[%emt 0:07:48]} Re8 {[%emt 0:17:19]} 17. Be5 {[%emt 0:03:09]} Nd7 {[%emt 0:01:51]} 18. Qh5 {[%emt 0:06:57]} g6 {[%emt 0:00:04]} 19. Bxg6 {[%emt 0:00:25]} Nxe5 {[%emt 0:00:04]} 20. Bxf7+ {[%emt 0:00:18]} Nxf7 {[%emt 0:00:05]} 21. b4 {[%emt 0:00:29]} Bb6 {[%emt 0:03:19]} 22. Kh1 {[%emt 0:02:05]} Qg5 {[%emt 0:02:30]} 23. Qxg5+ {[%emt 0:05:42]} Nxg5 {[%emt 0:00:11]} 24. Nc3 {[%emt 0:00:22]} Bb7 {[%emt 0:02:18]} 25. h4 {[%emt 0:01:07]} Ne4 {[%emt 0:00:35]} 26. Nxe4 {[%emt 0:00:10]} dxe4 {[%emt 0:00:02]} 27. Rd1 {[%emt 0:00:34]} Bd5 {[%emt 0:00:06]} 28. a4 {[%emt 0:02:03]} Rc8 {[%emt 0:01:13]} 29. a5 {[%emt 0:00:30]} Bd8 {[%emt 0:01:48]} 30. Rd2 {[%emt 0:00:50]} Bxh4 {[%emt 0:00:34]} 31. g3 {[%emt 0:01:47]} Be7 {[%emt 0:00:41]} 0-1

[Event "8th Palmanova Open 2019"]
[Site "Palmanova"]
[Date "2019.12.07"]
[Round "2.8"]
[White "Savanovic, Aleksandar"]
[Black "Bordin, Silvia"]
[Result "1-0"]
[ECO "C89"]
[WhiteElo "2420"]
[BlackElo "1905"]
[Annotator "NA"]
[PlyCount "61"]
[EventDate "2019.12.06"]
[EventType "swiss"]
[EventCountry "ITA"]
[SourceTitle "playchess.com"]
[Source "ChessBase"]
[SourceQuality "1"]
[TimeControl "5400+30"]

{[%evp 8,61,29,27,26,34,17,30,39,35,32767,32767,32767,32767,32767,32767,32767,32767,32767,32767,32767,32767,32767,32767,62,35,43,29,36,23,32767,32767,32767,32767,127,32767,32767,32767,32767,23,32767,32767,25,12,6,32767,32767,32767,478,513,475,514,511,523,528,518]} 1. e4 {[%emt 0:00:00]} e5 {[%emt 0:00:00]} 2. Nf3 {[%emt 0:00:00]} Nc6 {[%emt 0:00:32]} 3. Bb5 {[%emt 0:00:00]} a6 {[%emt 0:00:28]} 4. Ba4 {[%emt 0:00:00]} Nf6 {[%emt 0:00:31]} 5. O-O {[%emt 0:00:01]} Be7 {[%emt 0:00:30]} 6. Re1 {[%emt 0:00:07]} b5 {[%emt 0:00:20]} 7. Bb3 {[%emt 0:00:06]} O-O {[%emt 0:00:38]} 8. c3 {[%emt 0:00:15]} d5 {[%emt 0:00:52]} 9. exd5 {[%emt 0:00:09]} Nxd5 {[%emt 0:00:29]} 10. Nxe5 {[%emt 0:00:08]} Nxe5 {[%emt 0:00:11]} 11. Rxe5 {[%emt 0:00:08]} c6 {[%emt 0:00:12]} 12. d4 {[%emt 0:00:08]} Bd6 {[%emt 0:01:16]} 13. Re1 {[%emt 0:00:21]} Qh4 {[%emt 0:00:56]} 14. g3 {[%emt 0:00:08]} Qh3 {[%emt 0:00:43]} 15. Be3 {[%emt 0:00:23]} Bg4 {[%emt 0:03:00]} 16. Qd3 $1 {[%emt 0:00:08]} Rae8 {[%emt 0:01:38]} 17. Nd2 {[%emt 0:00:08]} Re6 {[%emt 0:06:11]} 18. a4 {[%emt 0:00:09]} Rfe8 {[%emt 0:02:18]} 19. Bxd5 {[%emt 0:10:11]} cxd5 {[%emt 0:01:03]} 20. axb5 {[%emt 0:10:55]} g5 {[%emt 0:06:45]} 21. Qf1 {[%emt 0:07:06]} Qxf1+ {[%emt 0:12:35]} 22. Nxf1 {[%emt 0:01:37]} axb5 {[%emt 0:00:14]} 23. Ra5 {[%emt 0:28:59]} f5 {[%emt 0:03:22]} 24. Rxb5 {[%emt 0:00:14]} f4 {[%emt 0:00:31]} 25. Rxd5 {[%emt 0:00:16]} h6 {[%emt 0:00:39]} 26. Kg2 {[%emt 0:06:03]} fxe3 {[%emt 0:06:53]} 27. Rxe3 {[%emt 0:00:12]} Be2 $2 {[%emt 0:22:12] [#]} (27... Bf8 $11 {and Black has nothing to worry.}) 28. Rxd6 $1 {[%emt 0:01:42]} Bf3+ {[%emt 0:03:07]} 29. Kg1 {[%emt 0:03:23]} Rxd6 {[%emt 0:00:23]} 30. Rxe8+ {[%emt 0:00:07]} Kf7 $18 {[%emt 0:00:13]} 31. Re3 {[%emt 0:00:12]} 1-0

[Event "8th Palmanova Open 2019"]
[Site "Palmanova"]
[Date "2019.12.07"]
[Round "2.9"]
[White "Forti, Francesco"]
[Black "Gregoric, Andraz"]
[Result "1-0"]
[ECO "E16"]
[WhiteElo "1903"]
[BlackElo "2036"]
[Annotator "NA"]
[PlyCount "83"]
[EventDate "2019.12.06"]
[EventType "swiss"]
[EventCountry "ITA"]
[SourceTitle "playchess.com"]
[Source "ChessBase"]
[SourceQuality "1"]
[TimeControl "5400+30"]

1. d4 {[%emt 0:00:00]} Nf6 {[%emt 0:00:00]} 2. c4 {[%emt 0:00:38]} e6 {[%emt 0:00:00]} 3. Nf3 {[%emt 0:01:17]} Bb4+ {[%emt 0:00:00]} 4. Bd2 {[%emt 0:04:44]} c5 {[%emt 0:00:01]} 5. g3 {[%emt 0:05:24]} b6 {[%emt 0:00:32]} 6. Bg2 {[%emt 0:04:33]} Bb7 {[%emt 0:00:25]} 7. Bxb4 {[%emt 0:04:02]} cxb4 {[%emt 0:00:05]} 8. O-O {[%emt 0:02:43]} O-O {[%emt 0:00:24]} 9. a3 {[%emt 0:07:10]} bxa3 {[%emt 0:03:00]} 10. Rxa3 {[%emt 0:04:37]} d6 {[%emt 0:01:12]} 11. Nc3 {[%emt 0:01:15]} Qe7 {[%emt 0:05:59]} 12. Qd3 {[%emt 0:05:23]} Rd8 $14 {[%emt 0:13:01]} 13. e4 {[%emt 0:04:42]} Nc6 {[%emt 0:08:24]} 14. Rd1 {[%emt 0:16:55]} a5 {[%emt 0:02:22]} 15. Qe2 {[%emt 0:01:25]} Rac8 {[%emt 0:10:07]} 16. d5 {[%emt 0:07:32]} Nb4 {[%emt 0:01:52]} 17. Nd4 {[%emt 0:08:28]} Ba6 {[%emt 0:03:41]} 18. b3 {[%emt 0:02:36]} Rc7 {[%emt 0:10:16]} 19. Raa1 {[%emt 0:01:39]} e5 {[%emt 0:02:07]} 20. Nf5 {[%emt 0:02:10]} Qf8 {[%emt 0:01:13]} 21. Rf1 {[%emt 0:04:51]} Re8 {[%emt 0:10:49]} 22. Qd2 {[%emt 0:01:04]} Nd7 {[%emt 0:01:23]} 23. Rab1 {[%emt 0:05:07]} Nc5 {[%emt 0:02:20]} 24. h4 {[%emt 0:01:29]} f6 {[%emt 0:04:46]} 25. Ne2 {[%emt 0:02:05]} b5 {[%emt 0:02:09]} 26. cxb5 {[%emt 0:00:04]} Bxb5 {[%emt 0:00:09]} 27. Rfc1 {[%emt 0:00:14]} Bd3 {[%emt 0:01:15]} 28. Nc3 {[%emt 0:01:17]} Rec8 {[%emt 0:01:56]} 29. Rb2 {[%emt 0:00:32]} Nxe4 {[%emt 0:06:45]} 30. Bxe4 {[%emt 0:00:22]} Bxe4 {[%emt 0:00:11]} 31. Nxe4 {[%emt 0:00:41]} Rxc1+ {[%emt 0:00:06]} 32. Kh2 {[%emt 0:00:03]} R8c2 {[%emt 0:01:11]} 33. Rxc2 {[%emt 0:00:08]} Rxc2 {[%emt 0:00:03]} 34. Qe3 {[%emt 0:00:35]} Nxd5 {[%emt 0:02:00]} 35. Qa7 {[%emt 0:01:03]} h6 {[%emt 0:05:28]} 36. Qxa5 {[%emt 0:00:28]} Ne7 {[%emt 0:00:54]} 37. Nfxd6 {[%emt 0:00:36]} Qb8 {[%emt 0:01:22]} 38. Qa6 {[%emt 0:00:37]} Ng6 {[%emt 0:00:45]} 39. Qd3 {[%emt 0:00:16]} Rc1 {[%emt 0:00:33]} 40. Nxf6+ {[%emt 0:00:19]} gxf6 {[%emt 0:00:40]} 41. Qxg6+ {[%emt 0:00:01]} Kh8 {[%emt 0:00:07]} 42. Nf7# {[%emt 0:00:02]} 1-0

[Event "8th Palmanova Open 2019"]
[Site "Palmanova"]
[Date "2019.12.07"]
[Round "2.10"]
[White "Herega, Nejc"]
[Black "Bisaro, Andrea"]
[Result "0-1"]
[ECO "D11"]
[WhiteElo "2009"]
[BlackElo "1845"]
[Annotator "NA"]
[PlyCount "82"]
[EventDate "2019.12.06"]
[EventType "swiss"]
[EventCountry "ITA"]
[SourceTitle "playchess.com"]
[Source "ChessBase"]
[SourceQuality "1"]
[TimeControl "5400+30"]

1. d4 {[%emt 0:00:00]} d5 {[%emt 0:00:00]} 2. c4 {[%emt 0:00:00]} c6 {[%emt 0:00:00]} 3. Nf3 {[%emt 0:00:05]} Nf6 {[%emt 0:00:00]} 4. e3 {[%emt 0:00:09]} Bg4 {[%emt 0:00:21]} 5. Qb3 {[%emt 0:02:03]} Qb6 {[%emt 0:02:26]} 6. Ne5 {[%emt 0:01:23]} Bf5 {[%emt 0:03:48]} 7. Nc3 {[%emt 0:04:35]} e6 {[%emt 0:03:06]} 8. c5 {[%emt 0:03:09]} Qc7 {[%emt 0:05:52]} 9. Bd3 {[%emt 0:07:52]} Bxd3 {[%emt 0:03:20]} 10. Nxd3 {[%emt 0:00:19]} Nbd7 {[%emt 0:00:08]} 11. Qd1 {[%emt 0:03:42]} e5 {[%emt 0:01:56]} 12. b4 {[%emt 0:03:43]} Be7 {[%emt 0:04:43]} 13. Bd2 {[%emt 0:03:25]} a6 $11 {[%emt 0:10:53]} 14. a4 {[%emt 0:01:56]} O-O {[%emt 0:01:28]} 15. O-O {[%emt 0:04:48]} Rfe8 {[%emt 0:06:18]} 16. f3 {[%emt 0:04:19]} Bf8 {[%emt 0:03:04]} 17. Be1 {[%emt 0:03:15]} exd4 {[%emt 0:12:20]} 18. exd4 {[%emt 0:02:05]} Nh5 {[%emt 0:06:01]} 19. Bf2 {[%emt 0:05:02]} g6 {[%emt 0:04:10]} 20. Qd2 {[%emt 0:05:44]} Bg7 {[%emt 0:03:54]} 21. b5 {[%emt 0:05:31]} Nf8 {[%emt 0:08:16]} 22. bxc6 {[%emt 0:07:14]} bxc6 {[%emt 0:00:26]} 23. a5 {[%emt 0:00:14]} Ne6 {[%emt 0:00:28]} 24. Nc1 {[%emt 0:02:04]} Rab8 {[%emt 0:04:03]} 25. Na4 {[%emt 0:03:39]} Rb5 {[%emt 0:01:32]} 26. Nc3 {[%emt 0:03:42]} Rb4 {[%emt 0:01:35]} 27. Nxd5 {[%emt 0:01:38]} Rxd4 {[%emt 0:01:01]} 28. Bxd4 {[%emt 0:02:11]} Bxd4+ {[%emt 0:00:14]} 29. Qxd4 {[%emt 0:01:24]} cxd5 {[%emt 0:00:05]} 30. Qxd5 {[%emt 0:00:47]} Rd8 {[%emt 0:00:06]} 31. Qc4 {[%emt 0:00:53]} Rd4 {[%emt 0:01:33]} 32. Qc2 {[%emt 0:01:28]} Qe5 {[%emt 0:05:03]} 33. Qe2 {[%emt 0:02:57]} Qd5 {[%emt 0:00:45]} 34. Re1 {[%emt 0:02:46]} Nhf4 {[%emt 0:01:03]} 35. Qa2 {[%emt 0:02:40]} Qg5 {[%emt 0:01:02]} 36. Nb3 {[%emt 0:01:18]} Rd3 {[%emt 0:01:23]} 37. Rab1 {[%emt 0:05:12]} Rxf3 {[%emt 0:00:19]} 38. Nc1 {[%emt 0:00:40]} Nh3+ {[%emt 0:00:18]} 39. Kh1 {[%emt 0:00:14]} Rf2 {[%emt 0:00:21]} 40. Rb8+ {[%emt 0:03:57]} Nf8 {[%emt 0:01:01]} 41. gxh3 {[%emt 0:01:28]} Qg2# {[%emt 0:00:08]} 0-1